[Event "November 21 Early 2023"]
[Site "https://www.chess.com"]
[Date "2023.11.21"]
[Round "10"]
[White "Ovezdurdyyeva, Jemal"]
[Black "Sadubayev, Airat"]
[Result "1-0"]
[Board "119"]
[TimeControl "180+1"]
[WhiteFideId "14001888"]
[BlackFideId "13713264"]
[WhiteElo "2086"]
[BlackElo "2137"]
[WhiteTeam "TKM"]
[BlackTeam "KAZ"]
[WhiteClock "0:00:32"]
[BlackClock "0:00:16"]

1. e4 {[%clk 0:03:00]}  c5 {[%clk 0:02:59]} 2. Nf3 {[%clk 0:03:00]}  e6 {[%clk 0:02:59]} 3. c3 {[%clk 0:02:59]}  Nf6 {[%clk 0:02:58]} 4. Bd3 {[%clk 0:02:59]}  c4 {[%clk 0:02:57]} 5. Bxc4 {[%clk 0:02:56]}  Nxe4 {[%clk 0:02:56]} 6. O-O {[%clk 0:02:56]}  d5 {[%clk 0:02:53]} 7. Bb3 {[%clk 0:02:54]}  Nc6 {[%clk 0:02:51]} 8. d4 {[%clk 0:02:54]}  Bd6 {[%clk 0:02:49]} 9. Nbd2 {[%clk 0:02:55]}  f5 {[%clk 0:02:37]} 10. c4 {[%clk 0:02:54]}  Na5 {[%clk 0:01:58]} 11. Nxe4 {[%clk 0:02:21]}  fxe4 {[%clk 0:01:49]} 12. Ng5 {[%clk 0:02:09]}  Nxb3 {[%clk 0:01:21]} 13. Qxb3 {[%clk 0:02:08]}  h6 {[%clk 0:01:15]} 14. Qh3 {[%clk 0:02:05]}  Qf6 {[%clk 0:01:05]} 15. f3 {[%clk 0:01:53]}  O-O {[%clk 0:01:01]} 16. Be3 {[%clk 0:01:42]}  hxg5 {[%clk 0:00:49]} 17. fxe4 {[%clk 0:01:42]}  Qh6 {[%clk 0:00:37]} 18. Rxf8+ {[%clk 0:01:34]}  Kxf8 {[%clk 0:00:33]} 19. Qf3+ {[%clk 0:01:32]}  Kg8 {[%clk 0:00:30]} 20. e5 {[%clk 0:01:29]}  Be7 {[%clk 0:00:27]} 21. Rf1 {[%clk 0:01:28]}  Qg6 {[%clk 0:00:23]} 22. cxd5 {[%clk 0:01:28]}  exd5 {[%clk 0:00:20]} 23. Qxd5+ {[%clk 0:01:28]}  Be6 {[%clk 0:00:19]} 24. Qxb7 {[%clk 0:01:29]}  Re8 {[%clk 0:00:18]} 25. d5 {[%clk 0:01:29]}  Qe4 {[%clk 0:00:15]} 26. Qc6 {[%clk 0:01:16]}  Qxe3+ {[%clk 0:00:13]} 27. Kh1 {[%clk 0:01:16]}  Rf8 {[%clk 0:00:12]} 28. Qxe6+ {[%clk 0:01:15]}  Kh8 {[%clk 0:00:09]} 29. Rg1 {[%clk 0:00:57]}  Bc5 {[%clk 0:00:07]} 30. Rd1 {[%clk 0:00:55]}  Qf2 {[%clk 0:00:06]} 31. Qh3+ {[%clk 0:00:51]}  Kg8 {[%clk 0:00:06]} 32. Qd3 {[%clk 0:00:44]}  Qf4 {[%clk 0:00:03]} 33. Re1 {[%clk 0:00:39]}  Qf2 {[%clk 0:00:01]} 34. Rc1 {[%clk 0:00:36]}  Qf4 {[%clk 0:00:02]} 35. Re1 {[%clk 0:00:36]}  Qf2 {[%clk 0:00:01]} 36. Rd1 {[%clk 0:00:34]}  Qf4 {[%clk 0:00:02]} 37. Qe2 {[%clk 0:00:21]}  Be7 {[%clk 0:00:02]} 38. d6 {[%clk 0:00:20]}  Bd8 {[%clk 0:00:02]} 39. e6 {[%clk 0:00:20]}  Re8 {[%clk 0:00:02]} 40. e7 {[%clk 0:00:19]}  Bb6 {[%clk 0:00:02]} 41. d7 {[%clk 0:00:19]}  Rxe7 {[%clk 0:00:02]} 42. Qxe7 {[%clk 0:00:20]}  Qg4 {[%clk 0:00:01]} 43. d8=Q+ {[%clk 0:00:20]}  Bxd8 {[%clk 0:00:01]} 44. Qxd8+ {[%clk 0:00:21]}  Kh7 {[%clk 0:00:02]} 45. h3 {[%clk 0:00:21]}  Qe2 {[%clk 0:00:02]} 46. Qd3+ {[%clk 0:00:22]}  Qxd3 {[%clk 0:00:02]} 47. Rxd3 {[%clk 0:00:23]}  Kg6 {[%clk 0:00:03]} 48. Ra3 {[%clk 0:00:23]}  Kh6 {[%clk 0:00:04]} 49. Rxa7 {[%clk 0:00:24]}  Kg6 {[%clk 0:00:05]} 50. Ra6+ {[%clk 0:00:24]}  Kf5 {[%clk 0:00:05]} 51. Rb6 {[%clk 0:00:25]}  Ke4 {[%clk 0:00:06]} 52. a4 {[%clk 0:00:25]}  Ke3 {[%clk 0:00:07]} 53. Rg6 {[%clk 0:00:26]}  Ke2 {[%clk 0:00:08]} 54. Rxg5 {[%clk 0:00:27]}  Ke1 {[%clk 0:00:09]} 55. Rxg7 {[%clk 0:00:27]}  Kd1 {[%clk 0:00:10]} 56. Rg3 {[%clk 0:00:28]}  Kd2 {[%clk 0:00:11]} 57. b4 {[%clk 0:00:27]}  Kc2 {[%clk 0:00:12]} 58. Rf3 {[%clk 0:00:28]}  Kb2 {[%clk 0:00:11]} 59. Kh2 {[%clk 0:00:29]}  Ka2 {[%clk 0:00:12]} 60. Kg3 {[%clk 0:00:30]}  Kb2 {[%clk 0:00:13]} 61. Kf4 {[%clk 0:00:31]}  Kc2 {[%clk 0:00:13]} 62. Ke4 {[%clk 0:00:32]}  Kd2 {[%clk 0:00:14]} 63. Re3 {[%clk 0:00:33]}  Kc2 {[%clk 0:00:14]} 64. Kd4 {[%clk 0:00:34]}  Kd2 {[%clk 0:00:15]} 65. Rf3 {[%clk 0:00:34]}  Kc2 {[%clk 0:00:16]} 66. Re3 {[%clk 0:00:32]}  Kd2 {[%clk 0:00:17]} 67. Ke4 {[%clk 0:00:32]}  Kc2 {[%clk 0:00:18]} 68. Rd3 {[%clk 0:00:33]}  Kb2 {[%clk 0:00:17]} 69. Kd4 {[%clk 0:00:33]}  Kc2 {[%clk 0:00:18]} 70. b5 {[%clk 0:00:32]}  Kb2 {[%clk 0:00:19]} 71. Rc3 {[%clk 0:00:33]}  Ka2 {[%clk 0:00:14]} 72. Kc4 {[%clk 0:00:33]}  Ka1 {[%clk 0:00:15]} 73. Kb3 {[%clk 0:00:32]}  Kb1 {[%clk 0:00:15]} 74. Rc4 {[%clk 0:00:32]}  Ka1 {[%clk 0:00:16]} 75. Rc1# {[%clk 0:00:32]} 1-0

[Event "November 21 Early 2023"]
[Site "https://www.chess.com"]
[Date "2023.11.21"]
[Round "10"]
[White "Koridze, Lile"]
[Black "Toktomushev, Teimur"]
[Result "1-0"]
[Board "121"]
[TimeControl "180+1"]
[WhiteFideId "13612514"]
[BlackFideId "14176726"]
[WhiteElo "2061"]
[BlackElo "2198"]
[WhiteTeam "GEO"]
[BlackTeam "UKR"]
[WhiteClock "0:00:16"]
[BlackClock "0:00:00"]

1. d4 {[%clk 0:03:00]}  d5 {[%clk 0:02:56]} 2. c4 {[%clk 0:02:55]}  e6 {[%clk 0:02:54]} 3. Nf3 {[%clk 0:02:55]}  Nf6 {[%clk 0:02:49]} 4. g3 {[%clk 0:02:55]}  Bb4+ {[%clk 0:02:49]} 5. Bd2 {[%clk 0:02:55]}  Be7 {[%clk 0:02:50]} 6. Bg2 {[%clk 0:02:55]}  O-O {[%clk 0:02:50]} 7. O-O {[%clk 0:02:55]}  c6 {[%clk 0:02:51]} 8. Qc2 {[%clk 0:02:55]}  b6 {[%clk 0:02:51]} 9. Rd1 {[%clk 0:02:54]}  Ba6 {[%clk 0:02:51]} 10. b3 {[%clk 0:02:51]}  Nbd7 {[%clk 0:02:47]} 11. Nc3 {[%clk 0:02:46]}  Rc8 {[%clk 0:02:42]} 12. Bf4 {[%clk 0:02:42]}  c5 {[%clk 0:02:39]} 13. dxc5 {[%clk 0:02:37]}  Bxc5 {[%clk 0:02:37]} 14. Qd3 {[%clk 0:01:33]}  Qe7 {[%clk 0:02:23]} 15. Nb5 {[%clk 0:01:29]}  Bxb5 {[%clk 0:02:15]} 16. cxb5 {[%clk 0:01:28]}  e5 {[%clk 0:02:16]} 17. Bg5 {[%clk 0:01:23]}  e4 {[%clk 0:02:14]} 18. Qxd5 {[%clk 0:01:22]}  Nxd5 {[%clk 0:01:41]} 19. Bxe7 {[%clk 0:01:21]}  Nxe7 {[%clk 0:01:36]} 20. Rxd7 {[%clk 0:01:19]}  exf3 {[%clk 0:01:35]} 21. Bxf3 {[%clk 0:01:18]}  Nf5 {[%clk 0:01:22]} 22. e3 {[%clk 0:01:14]}  Rfd8 {[%clk 0:00:52]} 23. Rad1 {[%clk 0:01:13]}  Rxd7 {[%clk 0:00:36]} 24. Rxd7 {[%clk 0:01:12]}  g6 {[%clk 0:00:30]} 25. Bd5 {[%clk 0:00:45]}  Ne7 {[%clk 0:00:11]} 26. Bc4 {[%clk 0:00:43]}  Kf8 {[%clk 0:00:02]} 27. Rxa7 {[%clk 0:00:38]}  Rd8 {[%clk 0:00:03]} 28. a3 {[%clk 0:00:38]}  Rd1+ {[%clk 0:00:02]} 29. Kg2 {[%clk 0:00:38]}  Nd5 {[%clk 0:00:03]} 30. a4 {[%clk 0:00:21]}  Rd2 {[%clk 0:00:02]} 31. Kf1 {[%clk 0:00:19]}  Rd1+ {[%clk 0:00:02]} 32. Ke2 {[%clk 0:00:19]}  Rc1 {[%clk 0:00:02]} 33. Bxd5 {[%clk 0:00:19]}  Rc2+ {[%clk 0:00:02]} 34. Kf3 {[%clk 0:00:19]}  Rc3 {[%clk 0:00:00]} 35. a5 {[%clk 0:00:16]} 1-0

[Event "November 21 Early 2023"]
[Site "https://www.chess.com"]
[Date "2023.11.21"]
[Round "10"]
[White "Zivic, Dragan"]
[Black "HeroWilczek"]
[Result "1-0"]
[Board "122"]
[TimeControl "180+1"]
[WhiteFideId "904740"]
[WhiteElo "2073"]
[BlackElo "2453"]
[WhiteTeam "SRB"]
[WhiteClock "0:00:21"]
[BlackClock "0:00:08"]

1. c4 {[%clk 0:03:00]}  e5 {[%clk 0:02:58]} 2. Nc3 {[%clk 0:03:00]}  Nf6 {[%clk 0:02:58]} 3. Nf3 {[%clk 0:02:55]}  Nc6 {[%clk 0:02:57]} 4. g3 {[%clk 0:02:53]}  d5 {[%clk 0:02:56]} 5. d4 {[%clk 0:02:50]}  exd4 {[%clk 0:02:46]} 6. Nxd4 {[%clk 0:02:48]}  Bc5 {[%clk 0:02:37]} 7. Nxc6 {[%clk 0:02:41]}  bxc6 {[%clk 0:02:38]} 8. Bg2 {[%clk 0:02:38]}  O-O {[%clk 0:02:38]} 9. O-O {[%clk 0:02:36]}  Bb7 {[%clk 0:02:35]} 10. Bg5 {[%clk 0:02:33]}  d4 {[%clk 0:02:02]} 11. Bxf6 {[%clk 0:02:22]}  Qxf6 {[%clk 0:02:02]} 12. Ne4 {[%clk 0:02:22]}  Qe7 {[%clk 0:02:02]} 13. Nxc5 {[%clk 0:02:20]}  Qxc5 {[%clk 0:02:03]} 14. b3 {[%clk 0:02:13]}  Rad8 {[%clk 0:02:01]} 15. Qd2 {[%clk 0:02:12]}  Bc8 {[%clk 0:02:01]} 16. Rac1 {[%clk 0:02:08]}  Rfe8 {[%clk 0:02:01]} 17. Rfe1 {[%clk 0:02:05]}  Bf5 {[%clk 0:01:59]} 18. b4 {[%clk 0:02:04]}  Qd6 {[%clk 0:01:53]} 19. c5 {[%clk 0:01:58]}  Qf6 {[%clk 0:01:52]} 20. a3 {[%clk 0:01:56]}  h6 {[%clk 0:01:51]} 21. h3 {[%clk 0:01:47]}  h5 {[%clk 0:01:44]} 22. Rc4 {[%clk 0:01:46]}  h4 {[%clk 0:01:33]} 23. g4 {[%clk 0:01:44]}  Be6 {[%clk 0:01:33]} 24. Rcc1 {[%clk 0:01:38]}  Bd5 {[%clk 0:01:31]} 25. e4 {[%clk 0:01:28]}  dxe3 {[%clk 0:01:29]} 26. Rxe3 {[%clk 0:01:27]}  Rxe3 {[%clk 0:00:53]} 27. Qxe3 {[%clk 0:01:24]}  g6 {[%clk 0:00:53]} 28. Rd1 {[%clk 0:01:18]}  Kg7 {[%clk 0:00:53]} 29. Bxd5 {[%clk 0:01:15]}  cxd5 {[%clk 0:00:54]} 30. Rd4 {[%clk 0:01:12]}  c6 {[%clk 0:00:53]} 31. a4 {[%clk 0:01:04]}  Rd7 {[%clk 0:00:51]} 32. b5 {[%clk 0:00:59]}  Re7 {[%clk 0:00:51]} 33. Qd2 {[%clk 0:00:57]}  Qf3 {[%clk 0:00:46]} 34. Rd3 {[%clk 0:00:50]}  Qe4 {[%clk 0:00:36]} 35. Qc3+ {[%clk 0:00:42]}  Kg8 {[%clk 0:00:32]} 36. bxc6 {[%clk 0:00:36]}  Qxa4 {[%clk 0:00:30]} 37. Rxd5 {[%clk 0:00:27]}  Qxc6 {[%clk 0:00:25]} 38. Rd8+ {[%clk 0:00:26]}  Re8 {[%clk 0:00:26]} 39. Rxe8+ {[%clk 0:00:25]}  Qxe8 {[%clk 0:00:27]} 40. c6 {[%clk 0:00:26]}  Qc8 {[%clk 0:00:22]} 41. c7 {[%clk 0:00:26]}  Kf8 {[%clk 0:00:21]} 42. Qe5 {[%clk 0:00:22]}  Kg8 {[%clk 0:00:08]} 43. Qd6 {[%clk 0:00:21]} 1-0

[Event "November 21 Early 2023"]
[Site "https://www.chess.com"]
[Date "2023.11.21"]
[Round "10"]
[White "Maect19"]
[Black "Begunov, Konstantin"]
[Result "1/2-1/2"]
[Board "123"]
[TimeControl "180+1"]
[BlackFideId "4118510"]
[WhiteElo "2333"]
[BlackElo "1989"]
[BlackTeam "RUS"]
[WhiteClock "0:00:16"]
[BlackClock "0:00:06"]

1. d4 {[%clk 0:03:00]}  d5 {[%clk 0:03:00]} 2. Nf3 {[%clk 0:03:00]}  c6 {[%clk 0:03:01]} 3. e3 {[%clk 0:03:00]}  Bg4 {[%clk 0:03:00]} 4. Nbd2 {[%clk 0:02:56]}  Nd7 {[%clk 0:02:59]} 5. b3 {[%clk 0:02:55]}  e5 {[%clk 0:02:55]} 6. dxe5 {[%clk 0:02:55]}  Nxe5 {[%clk 0:02:55]} 7. Bb2 {[%clk 0:02:51]}  Nxf3+ {[%clk 0:02:53]} 8. Nxf3 {[%clk 0:02:51]}  Nf6 {[%clk 0:02:52]} 9. Be2 {[%clk 0:02:51]}  Bb4+ {[%clk 0:02:51]} 10. c3 {[%clk 0:02:49]}  Be7 {[%clk 0:02:48]} 11. O-O {[%clk 0:02:49]}  O-O {[%clk 0:02:48]} 12. c4 {[%clk 0:02:49]}  dxc4 {[%clk 0:02:04]} 13. Bxc4 {[%clk 0:02:49]}  Qxd1 {[%clk 0:02:03]} 14. Rfxd1 {[%clk 0:02:46]}  Bxf3 {[%clk 0:02:03]} 15. gxf3 {[%clk 0:02:46]}  Rfd8 {[%clk 0:02:04]} 16. Kf1 {[%clk 0:02:43]}  Kf8 {[%clk 0:02:03]} 17. Ke2 {[%clk 0:02:43]}  Rxd1 {[%clk 0:01:51]} 18. Rxd1 {[%clk 0:02:42]}  Rd8 {[%clk 0:01:52]} 19. Rxd8+ {[%clk 0:02:42]}  Bxd8 {[%clk 0:01:53]} 20. Bd4 {[%clk 0:02:42]}  b6 {[%clk 0:01:49]} 21. e4 {[%clk 0:02:28]}  Bc7 {[%clk 0:01:41]} 22. Bxf6 {[%clk 0:02:19]}  gxf6 {[%clk 0:01:42]} 23. h3 {[%clk 0:02:20]}  Ke7 {[%clk 0:01:41]} 24. Ke3 {[%clk 0:02:20]}  b5 {[%clk 0:01:38]} 25. Bd3 {[%clk 0:02:18]}  Bb6+ {[%clk 0:01:38]} 26. Ke2 {[%clk 0:02:17]}  h6 {[%clk 0:01:34]} 27. f4 {[%clk 0:02:16]}  a6 {[%clk 0:01:30]} 28. f3 {[%clk 0:02:14]}  Bg1 {[%clk 0:01:28]} 29. e5 {[%clk 0:02:03]}  Bd4 {[%clk 0:01:20]} 30. Be4 {[%clk 0:01:56]}  c5 {[%clk 0:01:16]} 31. Bb7 {[%clk 0:01:54]}  a5 {[%clk 0:01:04]} 32. Ba6 {[%clk 0:01:52]}  b4 {[%clk 0:01:04]} 33. exf6+ {[%clk 0:01:50]}  Kxf6 {[%clk 0:01:04]} 34. Bc4 {[%clk 0:01:50]}  Kg6 {[%clk 0:01:02]} 35. Kd3 {[%clk 0:01:41]}  f6 {[%clk 0:01:02]} 36. Ke4 {[%clk 0:01:41]}  Kh5 {[%clk 0:01:02]} 37. Be6 {[%clk 0:01:39]}  Kh4 {[%clk 0:01:02]} 38. Bd7 {[%clk 0:01:35]}  Kg3 {[%clk 0:01:02]} 39. Bg4 {[%clk 0:01:29]}  Kf2 {[%clk 0:00:51]} 40. Kf5 {[%clk 0:01:26]}  a4 {[%clk 0:00:45]} 41. bxa4 {[%clk 0:01:01]}  c4 {[%clk 0:00:45]} 42. Ke4 {[%clk 0:01:01]}  c3 {[%clk 0:00:44]} 43. Kd3 {[%clk 0:01:00]}  Ke1 {[%clk 0:00:34]} 44. Kc2 {[%clk 0:00:57]}  Bb6 {[%clk 0:00:32]} 45. Bf5 {[%clk 0:00:53]}  Ke2 {[%clk 0:00:31]} 46. Bg4 {[%clk 0:00:49]}  Ke3 {[%clk 0:00:30]} 47. a3 {[%clk 0:00:44]}  Ba5 {[%clk 0:00:16]} 48. axb4 {[%clk 0:00:40]}  Bxb4 {[%clk 0:00:17]} 49. Kb3 {[%clk 0:00:30]}  Kxf4 {[%clk 0:00:16]} 50. Kc2 {[%clk 0:00:29]}  Ba5 {[%clk 0:00:15]} 51. Bh5 {[%clk 0:00:28]}  Kg3 {[%clk 0:00:13]} 52. Bg4 {[%clk 0:00:28]}  Kh4 {[%clk 0:00:10]} 53. Kd3 {[%clk 0:00:27]}  h5 {[%clk 0:00:10]} 54. Bf5 {[%clk 0:00:21]}  Kg5 {[%clk 0:00:10]} 55. Be4 {[%clk 0:00:17]}  Kf4 {[%clk 0:00:10]} 56. Ke2 {[%clk 0:00:16]}  f5 {[%clk 0:00:09]} 57. Bc2 {[%clk 0:00:15]}  Bb4 {[%clk 0:00:06]} 58. Kf2 {[%clk 0:00:15]}  Ba5 {[%clk 0:00:05]} 59. Ke2 {[%clk 0:00:16]}  Bb4 {[%clk 0:00:04]} 60. Kf2 {[%clk 0:00:16]}  h4 {[%clk 0:00:04]} 61. Ke2 {[%clk 0:00:16]}  Ba5 {[%clk 0:00:04]} 62. Kf2 {[%clk 0:00:16]}  Bb6+ {[%clk 0:00:04]} 63. Ke2 {[%clk 0:00:16]}  Ba5 {[%clk 0:00:05]} 64. Bd3 {[%clk 0:00:15]}  Bb4 {[%clk 0:00:06]} 65. Bc2 {[%clk 0:00:16]}  Ba5 {[%clk 0:00:06]} 1/2-1/2

[Event "November 21 Early 2023"]
[Site "https://www.chess.com"]
[Date "2023.11.21"]
[Round "10"]
[White "Spichkin, Alexander"]
[Black "Jimenez Fernandez, Rebeca"]
[Result "0-1"]
[Board "126"]
[TimeControl "180+1"]
[WhiteFideId "4144074"]
[BlackFideId "32070934"]
[WhiteElo "1968"]
[BlackElo "2015"]
[WhiteTeam "RUS"]
[BlackTeam "ESP"]
[WhiteClock "0:01:03"]
[BlackClock "0:02:23"]

1. f4 {[%clk 0:02:29]}  g6 {[%clk 0:03:00]} 2. Nf3 {[%clk 0:02:27]}  Bg7 {[%clk 0:03:01]} 3. e4 {[%clk 0:02:25]}  c5 {[%clk 0:02:59]} 4. Bd3 {[%clk 0:02:25]}  Nc6 {[%clk 0:03:00]} 5. O-O {[%clk 0:02:25]}  e6 {[%clk 0:02:58]} 6. Nc3 {[%clk 0:02:13]}  Nge7 {[%clk 0:02:58]} 7. Qe1 {[%clk 0:01:43]}  O-O {[%clk 0:02:56]} 8. Qh4 {[%clk 0:01:40]}  d5 {[%clk 0:02:55]} 9. e5 {[%clk 0:01:41]}  c4 {[%clk 0:02:46]} 10. Be2 {[%clk 0:01:34]}  d4 {[%clk 0:02:45]} 11. Ne4 {[%clk 0:01:34]}  d3 {[%clk 0:02:45]} 12. cxd3 {[%clk 0:01:28]}  cxd3 {[%clk 0:02:45]} 13. Bd1 {[%clk 0:01:27]}  Nf5 {[%clk 0:02:45]} 14. Qh3 {[%clk 0:01:27]}  Ncd4 {[%clk 0:02:42]} 15. b3 {[%clk 0:01:21]}  Nxf3+ {[%clk 0:02:40]} 16. Bxf3 {[%clk 0:01:22]}  Qd4+ {[%clk 0:02:40]} 17. Kh1 {[%clk 0:01:21]}  Qxa1 {[%clk 0:02:40]} 18. Ng3 {[%clk 0:01:16]}  Bd7 {[%clk 0:02:29]} 19. Nxf5 {[%clk 0:01:05]}  exf5 {[%clk 0:02:30]} 20. g4 {[%clk 0:01:04]}  fxg4 {[%clk 0:02:24]} 21. Bxg4 {[%clk 0:01:05]}  Bxg4 {[%clk 0:02:24]} 22. Qxg4 {[%clk 0:01:05]}  Rac8 {[%clk 0:02:24]} 23. f5 {[%clk 0:01:03]}  Rxc1 {[%clk 0:02:23]} 0-1

[Event "November 21 Early 2023"]
[Site "https://www.chess.com"]
[Date "2023.11.21"]
[Round "10"]
[White "Florianovitz, Derlei Alex"]
[Black "Haitin, Ilja"]
[Result "1-0"]
[Board "127"]
[TimeControl "180+1"]
[WhiteFideId "2114178"]
[BlackFideId "4501764"]
[WhiteElo "1953"]
[BlackElo "2221"]
[WhiteTeam "BRA"]
[BlackTeam "EST"]
[WhiteClock "0:00:21"]
[BlackClock "0:00:00"]

1. e4 {[%clk 0:03:00]}  e5 {[%clk 0:02:59]} 2. Nf3 {[%clk 0:03:00]}  Nc6 {[%clk 0:02:59]} 3. Bb5 {[%clk 0:03:00]}  d6 {[%clk 0:03:00]} 4. O-O {[%clk 0:03:00]}  a6 {[%clk 0:02:53]} 5. Ba4 {[%clk 0:02:59]}  b5 {[%clk 0:02:50]} 6. Bb3 {[%clk 0:02:59]}  Na5 {[%clk 0:02:49]} 7. d4 {[%clk 0:02:46]}  Nxb3 {[%clk 0:02:41]} 8. axb3 {[%clk 0:02:47]}  exd4 {[%clk 0:02:29]} 9. Nxd4 {[%clk 0:02:45]}  Bd7 {[%clk 0:02:23]} 10. Nc3 {[%clk 0:02:39]}  Be7 {[%clk 0:02:17]} 11. Nd5 {[%clk 0:02:34]}  Nf6 {[%clk 0:02:15]} 12. Nxe7 {[%clk 0:02:34]}  Qxe7 {[%clk 0:02:16]} 13. Re1 {[%clk 0:02:34]}  O-O {[%clk 0:02:15]} 14. Bg5 {[%clk 0:02:31]}  h6 {[%clk 0:02:13]} 15. Bh4 {[%clk 0:02:31]}  Rfe8 {[%clk 0:01:56]} 16. Qf3 {[%clk 0:02:25]}  c5 {[%clk 0:01:20]} 17. Bxf6 {[%clk 0:02:19]}  Qxf6 {[%clk 0:01:17]} 18. Qxf6 {[%clk 0:02:18]}  gxf6 {[%clk 0:01:18]} 19. Nf5 {[%clk 0:02:13]}  Bxf5 {[%clk 0:01:10]} 20. exf5 {[%clk 0:02:14]}  Re5 {[%clk 0:01:02]} 21. g4 {[%clk 0:02:07]}  a5 {[%clk 0:00:59]} 22. f4 {[%clk 0:02:03]}  Rxe1+ {[%clk 0:00:49]} 23. Rxe1 {[%clk 0:02:04]}  a4 {[%clk 0:00:50]} 24. Ra1 {[%clk 0:01:57]}  Kf8 {[%clk 0:00:44]} 25. Kf2 {[%clk 0:01:45]}  Ke7 {[%clk 0:00:41]} 26. Ke3 {[%clk 0:01:42]}  d5 {[%clk 0:00:37]} 27. c3 {[%clk 0:01:37]}  Kd6 {[%clk 0:00:35]} 28. bxa4 {[%clk 0:01:36]}  bxa4 {[%clk 0:00:31]} 29. h4 {[%clk 0:01:31]}  Re8+ {[%clk 0:00:22]} 30. Kf3 {[%clk 0:01:31]}  Re4 {[%clk 0:00:20]} 31. Rh1 {[%clk 0:01:13]}  Rc4 {[%clk 0:00:17]} 32. g5 {[%clk 0:01:02]}  fxg5 {[%clk 0:00:18]} 33. fxg5 {[%clk 0:00:59]}  hxg5 {[%clk 0:00:17]} 34. hxg5 {[%clk 0:01:00]}  a3 {[%clk 0:00:15]} 35. g6 {[%clk 0:00:48]}  fxg6 {[%clk 0:00:15]} 36. fxg6 {[%clk 0:00:47]}  Ra4 {[%clk 0:00:05]} 37. bxa3 {[%clk 0:00:41]}  Rxa3 {[%clk 0:00:04]} 38. g7 {[%clk 0:00:41]}  Rxc3+ {[%clk 0:00:02]} 39. Kf4 {[%clk 0:00:40]}  Rc4+ {[%clk 0:00:01]} 40. Kf3 {[%clk 0:00:34]}  Rc3+ {[%clk 0:00:01]} 41. Ke2 {[%clk 0:00:32]}  Rc2+ {[%clk 0:00:01]} 42. Kf1 {[%clk 0:00:24]}  Rc1+ {[%clk 0:00:01]} 43. Kg2 {[%clk 0:00:22]}  Rc2+ {[%clk 0:00:02]} 44. Kh3 {[%clk 0:00:20]}  Rc3+ {[%clk 0:00:02]} 45. Kh4 {[%clk 0:00:21]}  Rc4+ {[%clk 0:00:00]} 46. Kh5 {[%clk 0:00:21]} 1-0

[Event "November 21 Early 2023"]
[Site "https://www.chess.com"]
[Date "2023.11.21"]
[Round "10"]
[White "Semenova, Alina"]
[Black "Dishman, Stephen"]
[Result "1/2-1/2"]
[Board "129"]
[TimeControl "180+1"]
[WhiteFideId "24113875"]
[BlackFideId "403024"]
[WhiteElo "1827"]
[BlackElo "2204"]
[WhiteTeam "RUS"]
[BlackTeam "ENG"]
[WhiteClock "0:00:05"]
[BlackClock "0:00:48"]

1. e4 {[%clk 0:03:00]}  c6 {[%clk 0:02:59]} 2. Nf3 {[%clk 0:02:59]}  d5 {[%clk 0:03:00]} 3. Nc3 {[%clk 0:02:59]}  dxe4 {[%clk 0:03:00]} 4. Nxe4 {[%clk 0:03:00]}  Nf6 {[%clk 0:03:00]} 5. Nxf6+ {[%clk 0:02:59]}  exf6 {[%clk 0:03:01]} 6. Bc4 {[%clk 0:02:57]}  Bd6 {[%clk 0:03:01]} 7. Qe2+ {[%clk 0:02:57]}  Qe7 {[%clk 0:03:00]} 8. Qxe7+ {[%clk 0:02:57]}  Kxe7 {[%clk 0:03:01]} 9. O-O {[%clk 0:02:57]}  Rd8 {[%clk 0:03:02]} 10. d4 {[%clk 0:02:55]}  Bf5 {[%clk 0:02:56]} 11. c3 {[%clk 0:02:54]}  Kf8 {[%clk 0:02:53]} 12. h3 {[%clk 0:02:53]}  a5 {[%clk 0:02:52]} 13. a4 {[%clk 0:02:53]}  Na6 {[%clk 0:02:51]} 14. Re1 {[%clk 0:02:48]}  Nc7 {[%clk 0:02:49]} 15. g4 {[%clk 0:02:30]}  Be6 {[%clk 0:02:48]} 16. Bd3 {[%clk 0:02:30]}  g6 {[%clk 0:02:46]} 17. Nd2 {[%clk 0:02:29]}  Kg7 {[%clk 0:02:23]} 18. Nc4 {[%clk 0:02:21]}  Bxc4 {[%clk 0:02:15]} 19. Bxc4 {[%clk 0:02:22]}  Nd5 {[%clk 0:02:15]} 20. Bd2 {[%clk 0:02:11]}  Re8 {[%clk 0:02:07]} 21. h4 {[%clk 0:02:04]}  Re6 {[%clk 0:01:42]} 22. Rxe6 {[%clk 0:01:11]}  fxe6 {[%clk 0:01:43]} 23. f3 {[%clk 0:01:10]}  Kf7 {[%clk 0:01:36]} 24. Kf2 {[%clk 0:01:09]}  Rb8 {[%clk 0:01:24]} 25. h5 {[%clk 0:00:16]}  gxh5 {[%clk 0:01:22]} 26. gxh5 {[%clk 0:00:17]}  Rg8 {[%clk 0:01:22]} 27. Rg1 {[%clk 0:00:11]}  Rxg1 {[%clk 0:01:21]} 28. Kxg1 {[%clk 0:00:12]}  Bf4 {[%clk 0:01:18]} 29. Bxf4 {[%clk 0:00:05]}  Nxf4 {[%clk 0:01:19]} 30. b4 {[%clk 0:00:06]}  axb4 {[%clk 0:01:18]} 31. cxb4 {[%clk 0:00:06]}  Nd5 {[%clk 0:01:17]} 32. Bxd5 {[%clk 0:00:06]}  exd5 {[%clk 0:01:17]} 33. Kf2 {[%clk 0:00:03]}  Kg7 {[%clk 0:01:17]} 34. Kg3 {[%clk 0:00:03]}  Kf7 {[%clk 0:01:08]} 35. Kf4 {[%clk 0:00:02]}  Ke6 {[%clk 0:01:09]} 36. Kg4 {[%clk 0:00:02]}  h6 {[%clk 0:01:07]} 37. f4 {[%clk 0:00:03]}  f5+ {[%clk 0:01:07]} 38. Kf3 {[%clk 0:00:03]}  Kd6 {[%clk 0:01:07]} 39. Ke3 {[%clk 0:00:04]}  Kc7 {[%clk 0:01:08]} 40. Kd3 {[%clk 0:00:04]}  Kb6 {[%clk 0:01:07]} 41. Kc3 {[%clk 0:00:05]}  Ka6 {[%clk 0:01:08]} 42. Kb3 {[%clk 0:00:04]}  b6 {[%clk 0:01:07]} 43. Kc3 {[%clk 0:00:04]}  Kb7 {[%clk 0:01:07]} 44. Kb3 {[%clk 0:00:03]}  Kc7 {[%clk 0:01:07]} 45. Kc3 {[%clk 0:00:04]}  Kb7 {[%clk 0:01:07]} 46. Kb3 {[%clk 0:00:04]}  Ka7 {[%clk 0:00:56]} 47. b5 {[%clk 0:00:03]}  c5 {[%clk 0:00:50]} 48. dxc5 {[%clk 0:00:03]}  bxc5 {[%clk 0:00:51]} 49. a5 {[%clk 0:00:03]}  Kb7 {[%clk 0:00:52]} 50. Kc3 {[%clk 0:00:03]}  Kc7 {[%clk 0:00:52]} 51. Kd3 {[%clk 0:00:03]}  Kd6 {[%clk 0:00:52]} 52. a6 {[%clk 0:00:02]}  Kc7 {[%clk 0:00:52]} 53. Kc3 {[%clk 0:00:02]}  Kb6 {[%clk 0:00:52]} 54. Kd3 {[%clk 0:00:03]}  c4+ {[%clk 0:00:49]} 55. Kd4 {[%clk 0:00:03]}  Ka7 {[%clk 0:00:49]} 56. Kc3 {[%clk 0:00:03]}  Kb6 {[%clk 0:00:48]} 57. Kd4 {[%clk 0:00:04]}  Ka7 {[%clk 0:00:48]} 58. Kc3 {[%clk 0:00:04]}  Kb6 {[%clk 0:00:48]} 59. Kd4 {[%clk 0:00:05]} 1/2-1/2